[Event "Live Chess"]
[Site "Chess.com"]
[Date "2023.05.21"]
[Round "-"]
[White "WelshTiger"]
[Black "Hacker_2009"]
[Result "1-0"]
[WhiteElo "2349"]
[BlackElo "1916"]
[TimeControl "300"]
[EndTime "1:29:24 PDT"]
[Termination "WelshTiger won by resignation"]

1. e4 {[%clk 0:04:57.9]} 1... c5 {[%clk 0:04:57.6]} 2. Nf3 {[%clk 0:04:56.8]}
2... d6 {[%clk 0:04:56]} 3. c3 {[%clk 0:04:55.4]} 3... Nf6 {[%clk 0:04:53.5]} 4.
h3 {[%clk 0:04:54.7]} 4... Bd7 {[%clk 0:04:50.5]} 5. Bd3 {[%clk 0:04:53.9]} 5...
e6 {[%clk 0:04:48.8]} 6. Bc2 {[%clk 0:04:52.7]} 6... Be7 {[%clk 0:04:48]} 7. d4
{[%clk 0:04:52]} 7... cxd4 {[%clk 0:04:47]} 8. cxd4 {[%clk 0:04:51.9]} 8... O-O
{[%clk 0:04:45.9]} 9. O-O {[%clk 0:04:51.2]} 9... Nc6 {[%clk 0:04:41.6]} 10. Nc3
{[%clk 0:04:50.4]} 10... Qb6 {[%clk 0:04:39.7]} 11. Rb1 {[%clk 0:04:38.8]} 11...
Rac8 {[%clk 0:04:37.2]} 12. Be3 {[%clk 0:04:37.8]} 12... d5 {[%clk 0:04:33.8]}
13. exd5 {[%clk 0:04:35.8]} 13... Nxd5 {[%clk 0:04:31.4]} 14. Nxd5 {[%clk
0:04:34.8]} 14... exd5 {[%clk 0:04:31.3]} 15. a3 {[%clk 0:04:26.2]} 15... h6
{[%clk 0:04:28]} 16. Qd3 {[%clk 0:04:25]} 16... f5 {[%clk 0:04:22.7]} 17. Ne5
{[%clk 0:04:18.2]} 17... Nxe5 {[%clk 0:04:16.4]} 18. dxe5 {[%clk 0:04:17.6]}
18... Bc5 {[%clk 0:04:14.9]} 19. Bxc5 {[%clk 0:04:11]} 19... Qxc5 {[%clk
0:04:11.6]} 20. Bb3 {[%clk 0:04:09.1]} 20... Be6 {[%clk 0:04:08.3]} 21. Rbd1
{[%clk 0:04:07.5]} 21... Rfd8 {[%clk 0:04:06]} 22. Qd4 {[%clk 0:03:58.6]} 22...
Qxd4 {[%clk 0:03:57.2]} 23. Rxd4 {[%clk 0:03:58.5]} 23... Rc5 {[%clk 0:03:55.5]}
24. f4 {[%clk 0:03:56.7]} 24... Rb5 {[%clk 0:03:53.2]} 25. Rf3 {[%clk
0:03:54.6]} 25... Kf7 {[%clk 0:03:51.7]} 26. Rc3 {[%clk 0:03:51.3]} 26... Rd7
{[%clk 0:03:45.4]} 27. Ba4 {[%clk 0:03:48.1]} 27... Rxb2 {[%clk 0:03:40]} 28.
Bxd7 {[%clk 0:03:47.1]} 28... Bxd7 {[%clk 0:03:39.9]} 29. Rc7 {[%clk 0:03:35.9]}
29... Ke6 {[%clk 0:03:37.7]} 30. Rxd5 {[%clk 0:03:26.4]} 30... Kxd5 {[%clk
0:03:34.6]} 31. Rxd7+ {[%clk 0:03:25.4]} 31... Ke4 {[%clk 0:03:31.3]} 32. e6
{[%clk 0:03:24.6]} 32... Kxf4 {[%clk 0:03:28.1]} 33. Rxg7 {[%clk 0:03:18]} 33...
Re2 {[%clk 0:03:23.8]} 34. Rxb7 {[%clk 0:03:15.3]} 34... Rxe6 {[%clk 0:03:21.5]}
35. Rxa7 {[%clk 0:03:14.4]} 35... Kg3 {[%clk 0:03:20.5]} 36. Kf1 {[%clk
0:03:11.6]} 36... Rb6 {[%clk 0:03:18.3]} 37. Rg7+ {[%clk 0:03:10]} 37... Kf4
{[%clk 0:03:15.6]} 38. Rc7 {[%clk 0:03:00.2]} 38... Rb1+ {[%clk 0:03:14.7]} 39.
Kf2 {[%clk 0:02:58.8]} 39... Rb2+ {[%clk 0:03:13.7]} 40. Kg1 {[%clk 0:02:58.2]}
40... Rb3 {[%clk 0:03:02.5]} 41. a4 {[%clk 0:02:54.5]} 41... Ra3 {[%clk
0:03:01.5]} 42. Ra7 {[%clk 0:02:47.7]} 42... Kg3 {[%clk 0:02:58.6]} 43. Rg7+
{[%clk 0:02:46.7]} 43... Kf4 {[%clk 0:02:57.5]} 44. Rg6 {[%clk 0:02:42.3]} 44...
h5 {[%clk 0:02:52.2]} 45. h4 {[%clk 0:02:37.5]} 45... Rxa4 {[%clk 0:02:42]} 46.
Rg5 {[%clk 0:02:36.5]} 46... Ke5 {[%clk 0:02:37]} 47. Rxh5 {[%clk 0:02:33.8]}
47... Rg4 {[%clk 0:02:21.6]} 48. Kh2 {[%clk 0:02:32.5]} 48... Kf6 {[%clk
0:02:18.8]} 49. Kh3 {[%clk 0:02:31]} 49... Kg6 {[%clk 0:02:14.1]} 50. Rh8 {[%clk
0:02:29.7]} 50... Ra4 {[%clk 0:02:12.9]} 51. Rb8 {[%clk 0:02:27.3]} 51... Kf6
{[%clk 0:02:11]} 52. Rb6+ {[%clk 0:02:25.1]} 52... Kg7 {[%clk 0:02:07.1]} 53. g3
{[%clk 0:02:21.2]} 53... Ra1 {[%clk 0:02:03]} 54. Kg2 {[%clk 0:02:17.8]} 54...
Ra3 {[%clk 0:01:59.8]} 55. h5 {[%clk 0:02:16.7]} 55... Rc3 {[%clk 0:01:56.5]}
56. h6+ {[%clk 0:02:08.9]} 56... Kh7 {[%clk 0:01:53.1]} 57. Rf6 {[%clk
0:02:06.7]} 57... Ra3 {[%clk 0:01:36.3]} 58. Kh3 {[%clk 0:01:59.7]} 58... Ra4
{[%clk 0:01:34]} 59. Rxf5 {[%clk 0:01:56.5]} 59... Kxh6 {[%clk 0:01:32.6]} 60.
Rf6+ {[%clk 0:01:56]} 60... Kg5 {[%clk 0:01:31.8]} 61. Rb6 {[%clk 0:01:55.9]}
61... Ra1 {[%clk 0:01:30.5]} 62. Rb5+ {[%clk 0:01:55.1]} 62... Kg6 {[%clk
0:01:29.9]} 63. Kh4 {[%clk 0:01:53.1]} 63... Rh1+ {[%clk 0:01:29.2]} 64. Kg4
{[%clk 0:01:52.2]} 64... Ra1 {[%clk 0:01:28.8]} 65. Rb6+ {[%clk 0:01:51.5]}
65... Kg7 {[%clk 0:01:26.6]} 66. Kh4 {[%clk 0:01:48.9]} 66... Ra5 {[%clk
0:01:26]} 67. g4 {[%clk 0:01:47.9]} 67... Rc5 {[%clk 0:01:24.9]} 68. g5 {[%clk
0:01:46.1]} 68... Rc1 {[%clk 0:01:21.8]} 69. Kh5 {[%clk 0:01:45.2]} 69... Rh1+
{[%clk 0:01:20.3]} 70. Kg4 {[%clk 0:01:44.9]} 70... Rg1+ {[%clk 0:01:19.8]} 71.
Kf4 {[%clk 0:01:44.4]} 71... Rf1+ {[%clk 0:01:19]} 72. Ke5 {[%clk 0:01:41.4]}
72... Re1+ {[%clk 0:01:17.5]} 73. Kf4 {[%clk 0:01:40.1]} 73... Rf1+ {[%clk
0:01:16.7]} 74. Ke3 {[%clk 0:01:27.7]} 74... Re1+ {[%clk 0:01:12.2]} 75. Kf2
{[%clk 0:01:26.3]} 75... Re5 {[%clk 0:01:11.7]} 76. g6 {[%clk 0:01:25.2]} 76...
Rg5 {[%clk 0:01:10.8]} 77. Kf3 {[%clk 0:01:24]} 77... Rxg6 {[%clk 0:01:09.6]}
78. Rb7+ {[%clk 0:01:23.9]} 78... Kh6 {[%clk 0:01:08.8]} 79. Kf4 {[%clk
0:01:23.1]} 79... Rf6+ {[%clk 0:01:07.5]} 80. Ke5 {[%clk 0:01:22.5]} 80... Rg6
{[%clk 0:01:06.8]} 81. Kf5 {[%clk 0:01:20.7]} 81... Rg5+ {[%clk 0:01:05.9]} 82.
Kf4 {[%clk 0:01:19.4]} 82... Rg6 {[%clk 0:01:05.8]} 83. Rb8 {[%clk 0:01:16.9]}
83... Rf6+ {[%clk 0:01:04.6]} 84. Kg4 {[%clk 0:01:16.2]} 84... Rg6+ {[%clk
0:01:03.9]} 85. Kh4 {[%clk 0:01:15.8]} 85... Kg7 {[%clk 0:01:02.5]} 86. Rb7+
{[%clk 0:01:15]} 86... Kh6 {[%clk 0:01:01.3]} 87. Rc7 {[%clk 0:01:13.6]} 87...
Ra6 {[%clk 0:00:59.8]} 88. Rc4 {[%clk 0:01:12.3]} 88... Rf6 {[%clk 0:00:58.3]}
89. Rd4 {[%clk 0:01:11.6]} 89... Ra6 {[%clk 0:00:57.3]} 90. Rb4 {[%clk
0:01:11.1]} 90... Rf6 {[%clk 0:00:55]} 91. Kg4 {[%clk 0:01:10.6]} 91... Rd6
{[%clk 0:00:54.4]} 92. Kf5 {[%clk 0:01:10]} 92... Ra6 {[%clk 0:00:53.9]} 93.
Rh4+ {[%clk 0:01:07.9]} 93... Kg7 {[%clk 0:00:53.4]} 94. Rg4+ {[%clk 0:01:07.7]}
94... Kf7 {[%clk 0:00:53]} 95. Rb4 {[%clk 0:01:07.4]} 95... Ra5+ {[%clk
0:00:52.2]} 96. Kf4 {[%clk 0:01:07.1]} 96... Kf6 {[%clk 0:00:51.6]} 97. Rb6+
{[%clk 0:01:06.3]} 97... Kf7 {[%clk 0:00:50.7]} 98. Rb8 {[%clk 0:01:05.8]} 98...
Ra7 {[%clk 0:00:50.2]} 99. Rb6 {[%clk 0:01:04.8]} 99... Re7 {[%clk 0:00:50.1]}
100. Kf5 {[%clk 0:01:04.1]} 100... Ra7 {[%clk 0:00:50]} 101. Rh6 {[%clk
0:01:03]} 101... Ra5+ {[%clk 0:00:49.5]} 102. Ke4 {[%clk 0:01:02.5]} 102... Ra7
{[%clk 0:00:49.4]} 103. Rh7+ {[%clk 0:01:01.7]} 103... Ke6 {[%clk 0:00:48.6]}
104. Rxa7 {[%clk 0:01:01.6]} 1-0

[Event "Live Chess"]
[Site "Chess.com"]
[Date "2023.05.21"]
[Round "-"]
[White "BillythekidFellowes"]
[Black "Singapourfeuj"]
[Result "0-1"]
[WhiteElo "2044"]
[BlackElo "2194"]
[TimeControl "300"]
[EndTime "1:29:25 PDT"]
[Termination "Singapourfeuj won by checkmate"]

1. e4 {[%clk 0:04:55.3]} 1... c5 {[%clk 0:04:58.7]} 2. Nf3 {[%clk 0:04:54.6]}
2... d6 {[%clk 0:04:57.7]} 3. d4 {[%clk 0:04:54.1]} 3... cxd4 {[%clk 0:04:57]}
4. Qxd4 {[%clk 0:04:54]} 4... Nf6 {[%clk 0:04:55.9]} 5. Bg5 {[%clk 0:04:52.9]}
5... Nbd7 {[%clk 0:04:54]} 6. Nc3 {[%clk 0:04:51.4]} 6... h6 {[%clk 0:04:53]} 7.
Bh4 {[%clk 0:04:49.9]} 7... g5 {[%clk 0:04:51.6]} 8. Bg3 {[%clk 0:04:48.8]} 8...
Bg7 {[%clk 0:04:51]} 9. O-O-O {[%clk 0:04:46.3]} 9... Nh5 {[%clk 0:04:47]} 10.
Qd2 {[%clk 0:04:39.6]} 10... Qa5 {[%clk 0:03:48.9]} 11. Nd4 {[%clk 0:04:22.2]}
11... a6 {[%clk 0:03:41.1]} 12. Kb1 {[%clk 0:04:14.1]} 12... Nxg3 {[%clk
0:03:14.7]} 13. hxg3 {[%clk 0:04:01.7]} 13... Ne5 {[%clk 0:03:10.9]} 14. f4
{[%clk 0:03:54.7]} 14... gxf4 {[%clk 0:03:07.2]} 15. gxf4 {[%clk 0:03:54.6]}
15... Nc6 {[%clk 0:03:05.6]} 16. Nb3 {[%clk 0:03:51.5]} 16... Bxc3 {[%clk
0:02:59.6]} 17. bxc3 {[%clk 0:03:41.7]} 17... Qa3 {[%clk 0:02:53.8]} 18. f5
{[%clk 0:03:39.9]} 18... a5 {[%clk 0:02:52]} 19. Bb5 {[%clk 0:03:36.9]} 19... a4
{[%clk 0:02:49.2]} 20. Nd4 {[%clk 0:03:34.6]} 20... Bd7 {[%clk 0:02:47.9]} 21.
Rxh6 {[%clk 0:03:28.7]} 21... O-O-O {[%clk 0:02:37.7]} 22. Nxc6 {[%clk
0:03:19.5]} 22... bxc6 {[%clk 0:02:35.3]} 23. Ba6+ {[%clk 0:03:13.4]} 23... Kc7
{[%clk 0:02:34.4]} 24. Rxh8 {[%clk 0:03:12.4]} 24... Rxh8 {[%clk 0:02:33.2]} 25.
Ka1 {[%clk 0:03:09.2]} 25... Rb8 {[%clk 0:02:29.9]} 26. Rb1 {[%clk 0:03:08.4]}
26... Rxb1+ {[%clk 0:02:26.3]} 27. Kxb1 {[%clk 0:03:08.3]} 27... Qc5 {[%clk
0:02:25]} 28. Qd4 {[%clk 0:02:59.8]} 28... a3 {[%clk 0:02:17.8]} 29. Qxc5 {[%clk
0:02:56.6]} 29... dxc5 {[%clk 0:02:17]} 30. Kc1 {[%clk 0:02:55.5]} 30... Kd6
{[%clk 0:02:16.1]} 31. Kd2 {[%clk 0:02:53.1]} 31... Ke5 {[%clk 0:02:15]} 32. Ke3
{[%clk 0:02:52.1]} 32... e6 {[%clk 0:02:14.1]} 33. g4 {[%clk 0:02:51.2]} 33...
exf5 {[%clk 0:02:12.3]} 34. gxf5 {[%clk 0:02:51.1]} 34... f6 {[%clk 0:02:10.8]}
35. Be2 {[%clk 0:02:44.3]} 35... Be8 {[%clk 0:02:09.5]} 36. Kd3 {[%clk
0:02:40.8]} 36... Bf7 {[%clk 0:02:05.9]} 37. c4 {[%clk 0:02:38.5]} 37... Kf4
{[%clk 0:02:04.4]} 38. Bf1 {[%clk 0:02:35.9]} 38... Bg8 {[%clk 0:01:57.5]} 39.
Bg2 {[%clk 0:02:33.9]} 39... Kg3 {[%clk 0:01:56.3]} 40. Bh1 {[%clk 0:02:32]}
40... Bf7 {[%clk 0:01:51.2]} 41. c3 {[%clk 0:02:13.7]} 41... Bh5 {[%clk
0:01:48.6]} 42. e5 {[%clk 0:02:08.2]} 42... fxe5 {[%clk 0:01:47.3]} 43. Bxc6
{[%clk 0:02:06]} 43... Kf4 {[%clk 0:01:46]} 44. f6 {[%clk 0:02:04.8]} 44... Kg5
{[%clk 0:01:44.7]} 45. Ke4 {[%clk 0:01:53.6]} 45... Kxf6 {[%clk 0:01:43.6]} 46.
Kd5 {[%clk 0:01:50.4]} 46... Bf3+ {[%clk 0:01:42.3]} 47. Kxc5 {[%clk 0:01:49.1]}
47... Bxc6 {[%clk 0:01:41.2]} 48. Kxc6 {[%clk 0:01:25]} 48... e4 {[%clk
0:01:40.2]} 49. c5 {[%clk 0:01:24.6]} 49... e3 {[%clk 0:01:39.6]} 50. Kb7 {[%clk
0:01:23.9]} 50... e2 {[%clk 0:01:38.7]} 51. c6 {[%clk 0:01:23.6]} 51... e1=Q
{[%clk 0:01:37.4]} 52. c7 {[%clk 0:01:23.5]} 52... Qe4+ {[%clk 0:01:26.2]} 53.
Kb8 {[%clk 0:01:20.8]} 53... Qe5 {[%clk 0:01:23.4]} 54. Kb7 {[%clk 0:01:18]}
54... Qb5+ {[%clk 0:01:22.1]} 55. Ka7 {[%clk 0:01:17]} 55... Qc6 {[%clk
0:01:17.9]} 56. Kb8 {[%clk 0:01:15.7]} 56... Qb6+ {[%clk 0:01:17.1]} 57. Kc8
{[%clk 0:01:10.4]} 57... Ke6 {[%clk 0:01:15.2]} 58. Kd8 {[%clk 0:01:06.1]} 58...
Kd6 {[%clk 0:01:12.7]} 59. Ke8 {[%clk 0:01:06]} 59... Qxc7 {[%clk 0:01:11.6]}
60. Kf8 {[%clk 0:00:32.5]} 60... Ke6 {[%clk 0:01:10.1]} 61. c4 {[%clk
0:00:31.6]} 61... Qf7# {[%clk 0:01:08.7]} 0-1

[Event "Live Chess"]
[Site "Chess.com"]
[Date "2023.05.21"]
[Round "-"]
[White "Tilbs_12"]
[Black "domrobson"]
[Result "0-1"]
[WhiteElo "1563"]
[BlackElo "1758"]
[TimeControl "300"]
[EndTime "1:29:36 PDT"]
[Termination "domrobson won by resignation"]

1. e4 {[%clk 0:04:58]} 1... e5 {[%clk 0:04:58.5]} 2. Nf3 {[%clk 0:04:56.7]} 2...
Nc6 {[%clk 0:04:57.7]} 3. c3 {[%clk 0:04:56.3]} 3... d5 {[%clk 0:04:56]} 4. Bb5
{[%clk 0:04:41.6]} 4... dxe4 {[%clk 0:04:47.4]} 5. Nxe5 {[%clk 0:04:38.7]} 5...
Bd7 {[%clk 0:04:44.1]} 6. Nxd7 {[%clk 0:04:31.8]} 6... Qxd7 {[%clk 0:04:42.8]}
7. O-O {[%clk 0:04:31.1]} 7... O-O-O {[%clk 0:04:41.7]} 8. Na3 {[%clk
0:04:17.2]} 8... f5 {[%clk 0:04:37.8]} 9. b3 {[%clk 0:04:10.3]} 9... Nf6 {[%clk
0:04:32.5]} 10. Qe2 {[%clk 0:03:53.8]} 10... h6 {[%clk 0:04:18.5]} 11. Nc4
{[%clk 0:03:52.6]} 11... Qd5 {[%clk 0:04:07.7]} 12. Bxc6 {[%clk 0:03:48.3]}
12... Qxc6 {[%clk 0:04:05.1]} 13. b4 {[%clk 0:03:18.8]} 13... a6 {[%clk
0:03:47.3]} 14. Ne5 {[%clk 0:03:11.6]} 14... Qd5 {[%clk 0:03:41.7]} 15. Ng6
{[%clk 0:03:09.7]} 15... Rg8 {[%clk 0:03:40.5]} 16. Nxf8 {[%clk 0:02:58.9]}
16... Rgxf8 {[%clk 0:03:37]} 17. Rd1 {[%clk 0:02:56.9]} 17... Qd3 {[%clk
0:03:34.2]} 18. Qxd3 {[%clk 0:02:31]} 18... Rxd3 {[%clk 0:03:30.8]} 19. a4
{[%clk 0:02:30.1]} 19... Rfd8 {[%clk 0:03:29.7]} 20. Ra2 {[%clk 0:02:28.1]}
20... Nd5 {[%clk 0:03:27.3]} 21. b5 {[%clk 0:02:06.2]} 21... Nxc3 {[%clk
0:03:22]} 0-1

[Event "Live Chess"]
[Site "Chess.com"]
[Date "2023.05.21"]
[Round "-"]
[White "MarkLim1"]
[Black "MaximKris"]
[Result "0-1"]
[WhiteElo "1701"]
[BlackElo "1806"]
[TimeControl "300"]
[EndTime "1:29:36 PDT"]
[Termination "MaximKris won - game abandoned"]

1. d4 {[%clk 0:04:58.8]} 1... d5 {[%clk 0:04:58]} 2. Nf3 {[%clk 0:04:58.1]} 2...
Nf6 {[%clk 0:04:53.3]} 3. c4 {[%clk 0:04:57.3]} 3... e6 {[%clk 0:04:52]} 4. cxd5
{[%clk 0:04:56.6]} 4... exd5 {[%clk 0:04:51.9]} 5. Nc3 {[%clk 0:04:56.2]} 5...
Bd6 {[%clk 0:04:51.1]} 6. Qc2 {[%clk 0:04:55.8]} 6... O-O {[%clk 0:04:50.5]} 7.
Bg5 {[%clk 0:04:55.4]} 7... Nc6 {[%clk 0:04:49.9]} 8. e3 {[%clk 0:04:54.5]} 8...
h6 {[%clk 0:04:49.3]} 9. Bh4 {[%clk 0:04:50.9]} 9... Nb4 {[%clk 0:04:46.9]} 10.
Qb1 {[%clk 0:04:47.7]} 10... Bg4 {[%clk 0:04:21.4]} 0-1

[Event "Live Chess"]
[Site "Chess.com"]
[Date "2023.05.21"]
[Round "-"]
[White "matt1979"]
[Black "ExIsambard"]
[Result "0-1"]
[WhiteElo "1539"]
[BlackElo "1922"]
[TimeControl "300"]
[EndTime "1:29:47 PDT"]
[Termination "ExIsambard won by resignation"]

1. f4 {[%clk 0:04:58.9]} 1... e5 {[%clk 0:04:55.4]} 2. e4 {[%clk 0:04:56.7]}
2... exf4 {[%clk 0:04:51.7]} 3. Nf3 {[%clk 0:04:55]} 3... d6 {[%clk 0:04:50.9]}
4. Bc4 {[%clk 0:04:53.6]} 4... h6 {[%clk 0:04:48.7]} 5. d3 {[%clk 0:04:49.1]}
5... g5 {[%clk 0:04:47.2]} 6. O-O {[%clk 0:04:47.3]} 6... Bg7 {[%clk 0:04:45.7]}
7. Nc3 {[%clk 0:04:44.1]} 7... Ne7 {[%clk 0:04:45.1]} 8. Qe1 {[%clk 0:04:30.5]}
8... O-O {[%clk 0:04:42.9]} 9. Ne2 {[%clk 0:04:15.6]} 9... c6 {[%clk 0:04:41]}
10. c3 {[%clk 0:04:14.1]} 10... Be6 {[%clk 0:04:36.9]} 11. Bb3 {[%clk
0:04:03.7]} 11... Bxb3 {[%clk 0:04:35.8]} 12. axb3 {[%clk 0:04:02.8]} 12... Nd7
{[%clk 0:04:34.8]} 13. Ned4 {[%clk 0:03:57.1]} 13... Ne5 {[%clk 0:04:31.9]} 14.
Nxe5 {[%clk 0:03:51.4]} 14... dxe5 {[%clk 0:04:28.3]} 15. Nf3 {[%clk 0:03:48]}
15... Qxd3 {[%clk 0:04:26.4]} 16. Bd2 {[%clk 0:03:35.6]} 16... Ng6 {[%clk
0:04:17.6]} 17. Rd1 {[%clk 0:03:33.1]} 17... Qb5 {[%clk 0:04:16.4]} 18. b4
{[%clk 0:03:29.7]} 18... c5 {[%clk 0:04:14.9]} 19. bxc5 {[%clk 0:03:27.5]} 19...
Qxc5+ {[%clk 0:04:13.9]} 20. Kh1 {[%clk 0:03:24.2]} 20... Rad8 {[%clk
0:04:11.8]} 21. Bc1 {[%clk 0:03:12.8]} 21... Qb6 {[%clk 0:04:11]} 22. Rxd8
{[%clk 0:03:02.4]} 22... Rxd8 {[%clk 0:04:10.9]} 23. Qe2 {[%clk 0:03:01.2]}
23... Ne7 {[%clk 0:03:51.6]} 24. Rd1 {[%clk 0:02:57.5]} 24... a6 {[%clk
0:03:48.9]} 25. Qc2 {[%clk 0:02:46.2]} 25... Bf6 {[%clk 0:03:28.1]} 26. b3
{[%clk 0:02:42.4]} 26... g4 {[%clk 0:03:25.2]} 27. Nd2 {[%clk 0:02:38.2]} 27...
Qf2 {[%clk 0:03:16.5]} 28. Rf1 {[%clk 0:02:34.1]} 28... Qb6 {[%clk 0:02:48.6]}
29. Nc4 {[%clk 0:02:26.6]} 29... Qe6 {[%clk 0:02:41.3]} 30. Ba3 {[%clk
0:02:17.5]} 30... b5 {[%clk 0:02:26.2]} 31. Nd6 {[%clk 0:02:12.7]} 31... Rxd6
{[%clk 0:02:22.8]} 32. Bxd6 {[%clk 0:02:11.1]} 32... Qxd6 {[%clk 0:02:22.7]} 33.
Rd1 {[%clk 0:02:08.7]} 33... Qc5 {[%clk 0:02:18.6]} 34. Rd8+ {[%clk 0:02:06.7]}
34... Kg7 {[%clk 0:02:17.5]} 35. Qd3 {[%clk 0:01:52.5]} 35... Qf2 {[%clk
0:02:03.4]} 36. Qd1 {[%clk 0:01:46.7]} 36... Ng6 {[%clk 0:02:00.5]} 37. Rd2
{[%clk 0:01:28.6]} 37... Qe3 {[%clk 0:01:58.5]} 38. Rd3 {[%clk 0:01:19.8]} 38...
Qxe4 {[%clk 0:01:55.3]} 0-1

[Event "Live Chess"]
[Site "Chess.com"]
[Date "2023.05.21"]
[Round "-"]
[White "hturner40"]
[Black "Tushinskiy"]
[Result "0-1"]
[WhiteElo "1781"]
[BlackElo "2189"]
[TimeControl "300"]
[EndTime "1:29:54 PDT"]
[Termination "Tushinskiy won by resignation"]

1. g3 {[%clk 0:04:57.3]} 1... d5 {[%clk 0:04:58.8]} 2. Bg2 {[%clk 0:04:56.4]}
2... c6 {[%clk 0:04:58.7]} 3. Nf3 {[%clk 0:04:54.3]} 3... Nf6 {[%clk 0:04:57.7]}
4. O-O {[%clk 0:04:53.2]} 4... Bg4 {[%clk 0:04:56.8]} 5. c4 {[%clk 0:04:51.1]}
5... e6 {[%clk 0:04:55.3]} 6. Qb3 {[%clk 0:04:50]} 6... Qc7 {[%clk 0:04:52.4]}
7. d4 {[%clk 0:04:47.8]} 7... Bd6 {[%clk 0:04:50.8]} 8. c5 {[%clk 0:04:38.8]}
8... Be7 {[%clk 0:04:49.5]} 9. Bf4 {[%clk 0:04:37.1]} 9... Qc8 {[%clk
0:04:48.9]} 10. Nc3 {[%clk 0:04:34.1]} 10... Nbd7 {[%clk 0:04:47.9]} 11. Ne5
{[%clk 0:04:28.5]} 11... Nxe5 {[%clk 0:04:46]} 12. Bxe5 {[%clk 0:04:25.9]} 12...
O-O {[%clk 0:04:44.5]} 13. e4 {[%clk 0:04:24.9]} 13... Nd7 {[%clk 0:04:41.9]}
14. Bd6 {[%clk 0:04:07.3]} 14... Re8 {[%clk 0:04:34.4]} 15. e5 {[%clk
0:04:05.1]} 15... Bd8 {[%clk 0:04:29.3]} 16. f4 {[%clk 0:03:40.4]} 16... Bf5
{[%clk 0:04:24]} 17. Ne2 {[%clk 0:03:32.2]} 17... b6 {[%clk 0:04:20.7]} 18. h3
{[%clk 0:03:27.9]} 18... a5 {[%clk 0:04:12.5]} 19. g4 {[%clk 0:03:11.5]} 19...
Bg6 {[%clk 0:04:11.3]} 20. f5 {[%clk 0:03:09.2]} 20... exf5 {[%clk 0:04:09.8]}
21. gxf5 {[%clk 0:03:08]} 21... Bxf5 {[%clk 0:04:08]} 22. Rxf5 {[%clk
0:03:03.9]} 22... bxc5 {[%clk 0:04:07.2]} 23. dxc5 {[%clk 0:02:55]} 23... Nxc5
{[%clk 0:04:05.5]} 24. Qf3 {[%clk 0:02:49.5]} 24... Ne4 {[%clk 0:04:03.7]} 25.
Rxf7 {[%clk 0:02:44.1]} 25... Bb6+ {[%clk 0:03:59.5]} 26. Kf1 {[%clk 0:02:41]}
26... Nd2+ {[%clk 0:03:57.3]} 0-1

[Event "Live Chess"]
[Site "Chess.com"]
[Date "2023.05.21"]
[Round "-"]
[White "AyannaTang"]
[Black "wadsy27"]
[Result "0-1"]
[WhiteElo "212"]
[BlackElo "2568"]
[TimeControl "300"]
[EndTime "1:30:01 PDT"]
[Termination "wadsy27 won by checkmate"]

1. e4 {[%clk 0:04:58.6]} 1... e6 {[%clk 0:04:58.8]} 2. d4 {[%clk 0:04:52.7]}
2... d5 {[%clk 0:04:58.7]} 3. h4 {[%clk 0:04:46.8]} 3... dxe4 {[%clk 0:04:57.4]}
4. f3 {[%clk 0:04:42.4]} 4... exf3 {[%clk 0:04:55.8]} 5. Bc4 {[%clk 0:04:39.1]}
5... fxg2 {[%clk 0:04:53.3]} 6. Rh2 {[%clk 0:04:30.1]} 6... Nf6 {[%clk
0:04:50.8]} 7. d5 {[%clk 0:04:20.7]} 7... exd5 {[%clk 0:04:48.8]} 8. Bxd5 {[%clk
0:04:19.4]} 8... Qxd5 {[%clk 0:04:46.8]} 9. Qxd5 {[%clk 0:04:17.5]} 9... Nxd5
{[%clk 0:04:46.7]} 10. Be3 {[%clk 0:04:12.2]} 10... Nxe3 {[%clk 0:04:44.7]} 11.
Ke2 {[%clk 0:04:10.7]} 11... Bd6 {[%clk 0:04:43.3]} 12. Kxe3 {[%clk 0:04:09.3]}
12... Bxh2 {[%clk 0:04:42.5]} 13. Nf3 {[%clk 0:04:06.4]} 13... O-O {[%clk
0:04:39.4]} 14. Nxh2 {[%clk 0:04:04.6]} 14... g1=Q+ {[%clk 0:04:38.7]} 15. Kf3
{[%clk 0:03:59.5]} 15... Re8 {[%clk 0:04:37.9]} 16. Ng4 {[%clk 0:03:56.1]} 16...
Bxg4+ {[%clk 0:04:34.5]} 17. Kf4 {[%clk 0:03:53.9]} 17... Qf2+ {[%clk
0:04:31.4]} 18. Kxg4 {[%clk 0:03:52.5]} 18... Re4+ {[%clk 0:04:30.7]} 19. Kh3
{[%clk 0:03:50.9]} 19... Rxh4# {[%clk 0:04:28.7]} 0-1

[Event "Live Chess"]
[Site "Chess.com"]
[Date "2023.05.21"]
[Round "-"]
[White "AbilifyXL"]
[Black "Redwinelover"]
[Result "1-0"]
[WhiteElo "1950"]
[BlackElo "1123"]
[TimeControl "300"]
[EndTime "1:30:03 PDT"]
[Termination "AbilifyXL won by resignation"]

1. d4 {[%clk 0:04:58.7]} 1... Nf6 {[%clk 0:04:53.6]} 2. c4 {[%clk 0:04:58.6]}
2... e5 {[%clk 0:04:51.3]} 3. Nc3 {[%clk 0:04:58.5]} 3... exd4 {[%clk
0:04:48.1]} 4. Qxd4 {[%clk 0:04:58.4]} 4... Nc6 {[%clk 0:04:46.3]} 5. Qd1 {[%clk
0:04:57.2]} 5... Bb4 {[%clk 0:04:26.3]} 6. Bd2 {[%clk 0:04:54.8]} 6... O-O
{[%clk 0:04:19.6]} 7. Nf3 {[%clk 0:04:52]} 7... a5 {[%clk 0:04:10.5]} 8. a3
{[%clk 0:04:50.7]} 8... Bxc3 {[%clk 0:04:07.5]} 9. Bxc3 {[%clk 0:04:49.6]} 9...
Ne4 {[%clk 0:04:03.1]} 10. Rc1 {[%clk 0:04:46.7]} 10... d6 {[%clk 0:03:58.9]}
11. e3 {[%clk 0:04:45.3]} 11... Bg4 {[%clk 0:03:56.4]} 12. Be2 {[%clk
0:04:44.1]} 12... Qe7 {[%clk 0:03:50.1]} 13. O-O {[%clk 0:04:42.6]} 13... a4
{[%clk 0:03:42.9]} 14. h3 {[%clk 0:04:40.4]} 14... Bf5 {[%clk 0:03:39.5]} 15.
Nd4 {[%clk 0:04:38.3]} 15... Nxd4 {[%clk 0:03:32.4]} 16. Bxd4 {[%clk 0:04:35.3]}
16... Bg6 {[%clk 0:03:29.5]} 17. Bf3 {[%clk 0:04:30.1]} 17... c6 {[%clk
0:03:17.2]} 18. Qe2 {[%clk 0:04:09.2]} 18... d5 {[%clk 0:03:15.2]} 19. Rfd1
{[%clk 0:04:05.5]} 19... c5 {[%clk 0:03:12]} 20. Bxe4 {[%clk 0:04:03.1]} 20...
Bxe4 {[%clk 0:02:59.6]} 21. Bc3 {[%clk 0:04:00]} 21... Rfd8 {[%clk 0:02:55.5]}
22. cxd5 {[%clk 0:03:57.3]} 22... Rxd5 {[%clk 0:02:48.8]} 23. Qg4 {[%clk
0:03:45]} 23... g6 {[%clk 0:02:41.5]} 24. Rxd5 {[%clk 0:03:40.5]} 24... Bxd5
{[%clk 0:02:39.4]} 25. Rd1 {[%clk 0:03:39.2]} 25... Bb3 {[%clk 0:02:37.1]} 26.
Rd7 {[%clk 0:03:37]} 26... Qf8 {[%clk 0:02:33.9]} 27. Qf4 {[%clk 0:03:28.3]}
27... Rd8 {[%clk 0:02:27.2]} 28. Qf6 {[%clk 0:03:23.6]} 1-0